bitfinex-derivatives/quotes_SOLF0:USTF0_20250416
["timestamp","ask_amount","ask_price","bid_price","bid_amount"]
[1744787128520,0.05747011,125.76,125.73,0.05299558]
[1744787128821,0.05747011,125.76,125.74,7.9532]
[1744787130419,8.00987011,125.76,125.74,7.9532]
[1744787130626,8.00987011,125.76,125.73,8.00679558]
[1744787131320,8.00987011,125.76,125.74,7.9534]
[1744787133124,0.05747011,125.76,125.74,7.9534]
[1744787135322,8.00997011,125.76,125.74,7.9534]
[1744787137228,8.00997011,125.76,125.73,8.00679558]
[1744787141134,8.00997011,125.76,125.74,7.9535]
[1744787143934,0.05747011,125.76,125.74,7.9535]
[1744787144835,8.01007011,125.76,125.74,7.9535]
[1744787147529,8.01007011,125.76,125.73,8.00679558]
[1744787147731,14.73323414,125.75,125.73,8.00679558]
[1744787148637,6.78023414,125.75,125.73,8.00679558]
[1744787150049,14.73313414,125.75,125.73,8.00679558]
[1744787150437,6.78023414,125.75,125.73,8.00679558]
[1744787152438,14.73323414,125.75,125.73,8.00679558]
[1744787157241,0.05747011,125.76,125.73,0.05299558]
[1744787157443,0.05747011,125.76,125.75,6.78023414]
[1744787157837,0.05747011,125.76,125.75,14.73313414]
[1744787159644,0.05747011,125.76,125.75,7.9529]
[1744787160844,0.05747011,125.76,125.74,7.9531]
[1744787161049,6.78023414,125.75,125.73,0.05299558]
[1744787161439,6.78023414,125.74,125.73,0.05299558]
[1744787162352,14.73373414,125.74,125.73,0.05299558]
[1744787163845,7.9549,125.72,125.69,7.9563]
[1744787164046,6.78023414,125.7,125.65,602.26]
[1744787164249,29.7,125.74,125.65,602.26]
[1744787164250,6.78023414,125.69,125.67,7.9576]
[1744787164852,6.78023414,125.69,125.66,7.9583]
[1744787165049,6.83144893,125.69,125.65,29.7]
[1744787165348,6.83144893,125.69,125.66,7.9583]
[1744787166154,14.78824893,125.69,125.66,7.9583]
[1744787166650,8.00801479,125.69,125.66,7.9583]
[1744787166850,8.00801479,125.69,125.66,7.9585]
[1744787167059,0.05121479,125.69,125.66,7.9585]
[1744787167253,0.05121479,125.69,125.67,6.78023414]
[1744787167453,0.05121479,125.69,125.68,7.9573]
[1744787167950,0.05121479,125.69,125.68,14.73753414]
[1744787168851,0.05121479,125.69,125.68,7.9573]
[1744787169048,0.05121479,125.69,125.68,14.73753414]
[1744787169248,0.05121479,125.69,125.68,7.9573]
[1744787169444,0.05121479,125.69,125.65,29.7]
[1744787170747,0.05121479,125.69,125.65,40.30232462]
[1744787171751,0.05121479,125.69,125.68,7.9573]
[1744787172456,0.05121479,125.69,125.67,7.9576]
[1744787172644,0.05121479,125.69,125.65,29.7]
[1744787173051,0.05121479,125.69,125.65,37.6588]
[1744787173351,8.00831479,125.69,125.65,29.7]
[1744787173757,8.00831479,125.69,125.66,7.9585]
[1744787174755,0.05121479,125.69,125.67,7.9579]
[1744787176258,8.00791479,125.69,125.66,7.9582]
[1744787179159,0.05121479,125.69,125.65,7.9589]
[1744787179466,0.05121479,125.69,125.62,35.7927]
[1744787179960,7.9582,125.67,125.64,7.9595]
[1744787181061,7.9586,125.66,125.63,7.96]
[1744787181252,29.7,125.66,125.61,10.60232462]
[1744787181453,29.75754489,125.66,125.61,10.60232462]
[1744787181655,0.05754489,125.66,125.65,7.9592]
[1744787184466,0.05754489,125.66,125.64,7.9595]
[1744787184662,0.05754489,125.66,125.62,29.7]
[1744787185463,0.05754489,125.66,125.64,7.9592]
[1744787185762,0.05754489,125.66,125.62,29.7]
[1744787186663,0.05754489,125.66,125.65,7.9592]
[1744787191968,0.05754489,125.66,125.64,7.9596]
[1744787192360,0.05754489,125.66,125.62,36.48840868]
[1744787192572,0.05754489,125.66,125.63,6.78840868]
[1744787192865,0.05754489,125.66,125.65,6.78840868]
[1744787193361,0.05754489,125.66,125.65,14.74760868]
[1744787198376,2.0905,125.71,125.65,6.78840868]
[1744787198582,2.0978,125.72,125.68,6.78840868]
[1744787198878,7.9558,125.71,125.68,14.74540868]
[1744787199079,2.1998,125.75,125.7,6.78840868]
[1744787199375,31.7216,125.77,125.72,6.78840868]
[1744787199578,0.05820774,125.74,125.71,6.84415508]
[1744787199781,6.84661642,125.74,125.71,0.0557464]
[1744787200079,7.9548,125.72,125.71,0.0557464]
[1744787200674,36.54661642,125.74,125.71,0.0557464]
[1744787201074,36.54661642,125.74,125.71,8.0108464]
[1744787201376,44.50041642,125.74,125.71,8.0108464]
[1744787201676,36.54661642,125.74,125.71,0.0557464]
[1744787201981,7.9542,125.73,125.71,0.0557464]
[1744787203378,7.9542,125.73,125.71,8.0110464]
[1744787204792,7.9548,125.72,125.71,0.0557464]
[1744787210683,14.74320868,125.72,125.71,0.0557464]
[1744787211484,7.9556,125.71,125.69,7.9566]
[1744787212584,8.00657267,125.71,125.69,7.97802716]
[1744787213285,8.00657267,125.71,125.69,0.02142716]
[1744787214384,0.05097267,125.71,125.69,0.02142716]
[1744787214581,7.956,125.7,125.69,0.02142716]
[1744787216383,14.74440868,125.7,125.69,0.02142716]
[1744787223990,6.83938135,125.71,125.69,0.02142716]
[1744787224204,0.05097267,125.71,125.69,6.80983584]
[1744787224992,0.05097267,125.71,125.69,0.02142716]
[1744787226192,0.05097267,125.71,125.7,7.956]
[1744787227396,8.00647267,125.71,125.69,7.97772716]
[1744787227591,0.05097267,125.71,125.69,7.97772716]
[1744787228090,0.05097267,125.71,125.69,0.02142716]
[1744787228290,6.83938135,125.71,125.69,0.02142716]
[1744787228691,6.83938135,125.71,125.69,7.97802716]
[1744787229297,0.05097267,125.71,125.7,7.956]
[1744787230296,6.78840868,125.77,125.69,36.50983584]
[1744787230498,6.78840868,125.77,125.72,6.78840868]
[1744787230690,6.78840868,125.77,125.73,7.9538]
[1744787230691,7.9525,125.76,125.73,7.9538]
[1744787230897,7.9525,125.76,125.72,6.78840868]
[1744787231298,7.9525,125.76,125.73,7.954]
[1744787231497,0.05212616,125.75,125.73,8.01073556]
[1744787232700,0.05212616,125.75,125.73,0.05673556]
[1744787232998,6.84053484,125.75,125.73,0.05673556]
[1744787233206,7.9535,125.74,125.73,0.05673556]
[1744787234804,14.74190868,125.74,125.73,0.05673556]
[1744787243502,16.75930868,125.74,125.73,0.05673556]
[1744787247305,6.78840868,125.72,125.67,29.68]
[1744787247506,6.78840868,125.72,125.68,7.957]
[1744787247705,7.9559,125.71,125.68,7.957]
[1744787248309,8.01684073,125.71,125.68,7.957]
[1744787248714,7.9563,125.7,125.67,7.9576]
[1744787250205,7.9563,125.7,125.68,7.9571]
[1744787250407,6.84934941,125.71,125.68,7.9571]
[1744787253008,0.06094073,125.71,125.67,6.78840868]
[1744787253213,0.06094073,125.71,125.69,6.78840868]
[1744787254217,0.06094073,125.71,125.69,14.74470868]
[1744787255013,8.01664073,125.71,125.68,37.637]
[1744787255210,6.84934941,125.71,125.68,37.637]
[1744787256014,7.9561,125.7,125.68,37.637]
[1744787262126,14.80494941,125.71,125.69,7.9567]
[1744787262326,14.80494941,125.71,125.68,29.68]
[1744787262729,14.80494941,125.71,125.68,37.637]
[1744787264027,7.9561,125.7,125.68,37.637]
[1744787266327,7.9561,125.7,125.68,7.957]
[1744787273432,7.9567,125.69,125.67,7.9576]
[1744787274438,7.9567,125.69,125.66,37.638]
[1744787275438,7.9567,125.69,125.67,7.9579]
[1744787275638,7.9564,125.7,125.67,7.9579]
[1744787277235,7.9564,125.7,125.57,385.8928]
[1744787277236,579.56840868,125.69,125.54,75.10002961]
[1744787277434,6.78840868,125.66,125.59,6.78840868]
[1744787277631,0.06077979,125.63,125.61,6.78840868]
[1744787278542,0.06077979,125.63,125.62,7.9611]
[1744787281344,0.06077979,125.63,125.61,14.74990868]
[1744787289647,8.02137979,125.63,125.61,6.78840868]
[1744787289843,0.06077979,125.63,125.61,6.78840868]
[1744787290041,0.06077979,125.63,125.59,36.46840868]
[1744787290241,7.9615,125.62,125.59,44.43110868]
[1744787295355,7.9619,125.61,125.58,14.75180868]
[1744787295849,8.0152649,125.61,125.58,14.75180868]
[1744787296250,7.9625,125.6,125.57,7.964]
[1744787296449,0.0533649,125.61,125.56,29.68]
[1744787296646,6.78840868,125.6,125.56,29.68]
[1744787296949,6.78840868,125.6,125.55,6.78840868]
[1744787297654,6.78840868,125.6,125.54,6.1346]
[1744787297848,6.78840868,125.6,125.55,6.78840868]
[1744787298048,0.05067652,125.58,125.56,7.9649]
[1744787298449,0.05067652,125.58,125.55,6.78840868]
[1744787298650,0.05067652,125.58,125.55,14.75350868]
[1744787298851,0.05067652,125.58,125.55,6.78840868]
[1744787299359,0.05067652,125.58,125.56,7.9646]
[1744787306853,0.05067652,125.58,125.54,10.89350868]
[1744787307357,8.01467652,125.58,125.55,7.9651]
[1744787307559,8.01467652,125.58,125.54,10.89350868]
[1744787307850,0.05067652,125.58,125.54,10.89350868]
[1744787308052,0.05067652,125.58,125.56,6.78840868]
[1744787308254,0.05067652,125.58,125.56,36.46840868]
[1744787308555,7.9615,125.62,125.59,7.9626]
[1744787309357,7.9615,125.62,125.6,7.9623]
[1744787309555,8.02185047,125.62,125.6,7.9623]
[1744787312159,8.02185047,125.62,125.59,8.02280973]
[1744787312655,8.02185047,125.62,125.59,0.06010973]
[1744787312857,8.02185047,125.62,125.6,7.9623]
[1744787314764,14.75010868,125.61,125.59,8.02290973]
[1744787315758,7.9624,125.6,125.59,0.06010973]
[1744787317461,14.75080868,125.6,125.59,0.06010973]
[1744787327475,6.78840868,125.6,125.54,6.78840868]
[1744787327676,6.78840868,125.58,125.53,36.46840868]
[1744787327873,6.78840868,125.58,125.56,7.9647]
[1744787328278,14.75240868,125.58,125.56,7.9647]
[1744787328571,6.78840868,125.58,125.56,7.9647]
[1744787328777,6.84630814,125.58,125.56,7.9647]
[1744787331577,14.81000814,125.58,125.56,7.9647]
[1744787332079,6.84630814,125.58,125.56,7.9647]
[1744787333189,6.78840868,125.57,125.53,29.68]
[1744787333680,14.75300868,125.57,125.54,7.9657]
[1744787333974,7.9646,125.57,125.54,7.9657]
[1744787334280,29.71789946,125.58,125.56,7.9643]
[1744787334678,0.05789946,125.58,125.55,6.78840868]
[1744787334873,0.05789946,125.58,125.57,6.78840868]
[1744787335479,0.05789946,125.58,125.57,14.75270868]
[1744787337579,0.05789946,125.58,125.57,7.9643]
[1744787341188,0.05789946,125.58,125.56,37.6246]
[1744787341686,0.05789946,125.58,125.54,6.78840868]
[1744787342284,0.05789946,125.58,125.57,7.9643]
[1744787345687,0.05789946,125.58,125.56,7.9646]
[1744787348291,0.05789946,125.58,125.57,7.9643]
[1744787352991,0.05789946,125.58,125.56,7.9646]
[1744787353386,0.05789946,125.58,125.53,29.66]
[1744787353692,0.05789946,125.58,125.54,6.78840868]
[1744787354091,0.05789946,125.58,125.56,7.9643]
[1744787356491,8.02179946,125.58,125.56,7.9643]
[1744787357388,0.05789946,125.58,125.56,7.9643]
[1744787357794,0.05789946,125.58,125.57,7.9643]
[1744787358192,4.3363,125.63,125.56,36.46840868]
[1744787358494,6.78840868,125.64,125.58,6.78840868]
[1744787358808,7.9613,125.62,125.58,6.78840868]
[1744787359299,0.05238623,125.61,125.59,0.05287613]
[1744787359698,0.05238623,125.61,125.6,7.9624]
[1744787361795,6.84079491,125.61,125.59,0.05287613]
[1744787362394,7.9624,125.6,125.59,0.05287613]
[1744787365898,14.76062902,125.6,125.59,0.05287613]
[1744787368998,0.05238623,125.61,125.59,0.05287613]
[1744787369194,0.05238623,125.61,125.59,6.85110515]
[1744787369395,0.05238623,125.61,125.59,36.51110515]
[1744787370202,0.05238623,125.61,125.6,7.9624]
[1744787378209,0.05238623,125.61,125.59,37.67547613]
[1744787378708,7.9624,125.6,125.59,0.05287613]
[1744787378909,14.76062902,125.6,125.59,0.05287613]
[1744787385212,7.9637,125.58,125.53,29.66]
[1744787385421,6.79822902,125.58,125.53,29.66]
[1744787385715,14.76222902,125.58,125.55,7.965]
[1744787386412,14.81450832,125.58,125.55,7.965]
[1744787387521,8.0162793,125.58,125.55,7.965]
[1744787387721,14.81450832,125.58,125.55,7.965]
[1744787388220,7.9649,125.56,125.51,29.66]
[1744787388417,14.76312902,125.56,125.51,36.45822902]
[1744787388617,0.05203324,125.55,125.53,6.79822902]
[1744787388923,7.964,125.58,125.56,7.9649]
[1744787389114,7.964,125.58,125.54,29.66]
[1744787389320,8.01557525,125.58,125.54,29.66]
[1744787389519,8.01557525,125.58,125.55,7.9653]
[1744787390124,14.81380427,125.58,125.55,7.9653]
[1744787390721,7.9643,125.57,125.55,7.9653]
[1744787396522,7.9643,125.57,125.54,37.6258]
[1744787396729,7.965,125.56,125.54,37.6258]
[1744787397227,14.76282902,125.57,125.54,37.6258]
[1744787397727,14.76282902,125.57,125.54,29.66]
[1744787397728,7.9653,125.56,125.54,29.66]
[1744787398534,7.9653,125.56,125.54,37.6261]
[1744787400224,14.76272902,125.57,125.54,37.6261]
[1744787401830,7.9653,125.56,125.54,29.66]
[1744787402229,7.9653,125.56,125.53,7.9665]
[1744787402436,7.9656,125.55,125.53,7.9665]
[1744787402629,6.3464,125.62,125.53,6.79822902]
[1744787402829,6.79822902,125.6,125.55,6.79822902]
[1744787403028,0.05068576,125.59,125.55,6.79822902]
[1744787403238,0.05068576,125.59,125.57,7.9638]
[1744787404431,8.01378576,125.59,125.57,7.9638]
[1744787404634,0.05068576,125.59,125.58,7.9636]
[1744787405031,36.43822902,125.65,125.57,36.43822902]
[1744787405230,36.43822902,125.65,125.6,7.9618]
[1744787405531,7.9608,125.63,125.6,7.9618]
[1744787406135,8.01247706,125.63,125.6,8.01768722]
[1744787407034,7.9611,125.62,125.6,8.01768722]
[1744787407241,7.9611,125.62,125.6,0.05588722]
[1744787410140,7.9611,125.62,125.6,8.01828722]
[1744787410341,7.9611,125.62,125.6,0.05588722]
[1744787411839,7.9611,125.62,125.6,8.01808722]
[1744787415743,7.9617,125.61,125.6,0.05588722]
[1744787415952,6.84990608,125.63,125.6,0.05588722]
[1744787416249,7.9611,125.62,125.6,0.05588722]
[1744787419949,7.9611,125.62,125.6,8.01818722]
[1744787422143,7.9611,125.62,125.6,0.05588722]
[1744787426849,6.84990608,125.63,125.6,0.05588722]
[1744787428247,7.9616,125.62,125.6,0.05588722]
[1744787429250,7.9617,125.61,125.6,0.05588722]
[1744787429949,7.9615,125.62,125.6,0.05588722]
[1744787433451,6.84990608,125.63,125.6,0.05588722]
[1744787433452,7.9617,125.61,125.6,0.05588722]
[1744787433953,6.84990608,125.63,125.6,0.05588722]
[1744787434253,7.9615,125.62,125.6,0.05588722]
[1744787443354,7.9617,125.61,125.6,0.05588722]
[1744787450564,14.75992902,125.61,125.6,0.05588722]
[1744787453464,7.9617,125.61,125.6,0.05588722]
[1744787453871,0.05167706,125.63,125.6,0.05588722]
[1744787454068,0.05167706,125.63,125.6,8.01788722]
[1744787454262,0.05167706,125.63,125.6,0.05588722]
[1744787454767,0.05167706,125.63,125.61,7.9617]
[1744787462773,0.05167706,125.63,125.62,14.75932902]
[1744787463075,0.05167706,125.63,125.62,44.33932902]
[1744787466275,0.05167706,125.63,125.61,7.9615]
[1744787467779,14.81080608,125.63,125.6,8.01808722]
[1744787474385,7.9615,125.62,125.6,0.05588722]
[1744787475388,14.81060608,125.63,125.6,8.01818722]
[1744787475985,0.05167706,125.63,125.61,7.9617]
[1744787477487,8.01227706,125.63,125.61,7.9617]
[1744787477688,8.01227706,125.63,125.6,8.01788722]
[1744787478290,7.9615,125.62,125.6,0.05588722]
[1744787480289,7.9615,125.62,125.6,8.01808722]
[1744787480585,7.9615,125.62,125.6,0.05588722]
[1744787485208,7.9617,125.61,125.6,0.05588722]
[1744787487495,7.9615,125.62,125.6,0.05588722]
[1744787489802,7.9617,125.61,125.6,0.05588722]
[1744787496223,7.9614,125.62,125.6,0.05588722]
[1744787497115,7.9617,125.61,125.6,0.05588722]
[1744787501027,36.35822902,125.61,125.53,29.56]
[1744787501223,6.79822902,125.58,125.53,29.56]
[1744787501419,6.79822902,125.58,125.54,7.966]
[1744787501825,7.9649,125.56,125.53,29.56]
[1744787502124,8.01615739,125.56,125.53,37.5265]
[1744787502425,6.79822902,125.55,125.53,29.56]
[1744787503430,7.9662,125.54,125.53,29.56]
[1744787503825,7.9662,125.54,125.51,7.9676]
[1744787504021,7.9662,125.54,125.52,7.9674]
[1744787504423,8.01943632,125.54,125.52,7.9674]
[1744787504627,0.05323632,125.54,125.52,7.9674]
[1744787505422,0.05323632,125.54,125.53,7.9668]
[1744787505629,6.79822902,125.58,125.53,36.35822902]
[1744787505930,7.9637,125.58,125.55,7.965]
[1744787506126,13.09812902,125.6,125.55,6.79822902]
[1744787506323,29.56,125.61,125.57,6.79822902]
[1744787506521,6.79822902,125.62,125.57,6.79822902]
[1744787506522,13.14442902,125.65,125.6,6.79822902]
[1744787506917,0.06034465,125.64,125.6,6.79822902]
[1744787507127,0.06034465,125.64,125.61,0.05571782]
[1744787508327,7.9605,125.63,125.61,8.01741782]
[1744787508628,7.9605,125.63,125.61,0.05571782]
[1744787510429,7.9611,125.62,125.61,0.05571782]
[1744787510632,14.75932902,125.62,125.61,0.05571782]
[1744787520438,14.75932902,125.62,125.57,37.5239]
[1744787520439,7.9627,125.6,125.57,37.5239]
[1744787521638,8.02136449,125.6,125.57,37.5239]
[1744787522341,8.02136449,125.6,125.58,7.9636]
[1744787522639,0.05866449,125.6,125.58,7.9636]
[1744787523243,0.05866449,125.6,125.59,6.79822902]
[1744787524141,0.05866449,125.6,125.59,14.76122902]
[1744787529540,7.9608,125.63,125.59,6.79822902]
[1744787530239,7.9608,125.63,125.6,7.9618]
[1744787530748,8.02137058,125.63,125.6,8.01276679]
[1744787530949,0.06057058,125.63,125.61,6.79822902]
[1744787531638,0.06057058,125.63,125.62,7.9611]
[1744787536557,7.9575,125.68,125.66,7.9585]
[1744787537152,6.5185,125.7,125.67,7.9573]
[1744787537363,7.9558,125.71,125.67,6.79822902]
[1744787537555,29.52,125.72,125.67,36.31822902]
[1744787537759,0.05604659,125.7,125.68,8.01141977]
[1744787538053,0.05604659,125.7,125.68,14.80964879]
[1744787539456,0.05604659,125.7,125.69,7.9567]
[1744787542773,0.05604659,125.7,125.69,14.75492902]
[1744787544565,0.05604659,125.7,125.69,7.9567]
[1744787547659,0.05604659,125.7,125.68,8.01161977]
[1744787547864,6.85427561,125.7,125.68,8.01161977]
[1744787549665,6.79822902,125.69,125.68,0.05461977]
[1744787551366,14.75492902,125.69,125.68,0.05461977]
[1744787565282,0.05604659,125.7,125.68,0.05461977]
[1744787565283,8.01244659,125.7,125.68,0.05461977]
[1744787565483,0.05604659,125.7,125.68,0.05461977]
[1744787565684,33.5973,125.75,125.69,36.29822902]
[1744787565685,6.79822902,125.74,125.69,36.29822902]
[1744787565981,7.9545,125.73,125.69,29.5]
[1744787566578,7.9545,125.73,125.7,7.9557]
[1744787566785,0.05318065,125.72,125.7,8.00600599]
[1744787567878,0.05318065,125.72,125.7,0.05030599]
[1744787568083,6.85140967,125.72,125.7,0.05030599]
[1744787568682,7.9554,125.71,125.7,0.05030599]
[1744787569490,14.75362902,125.71,125.7,0.05030599]
[1744787569684,14.75362902,125.71,125.64,9.00992902]
[1744787569685,7.9575,125.68,125.64,9.00992902]
[1744787569883,7.9575,125.68,125.65,29.5]
[1744787570488,14.75502902,125.69,125.66,7.9584]
[1744787570988,14.80744748,125.69,125.66,8.00994436]
[1744787571589,7.9574,125.68,125.66,0.05154436]
[1744787577092,7.9574,125.68,125.66,8.01004436]
[1744787577590,7.9574,125.68,125.66,0.05154436]
[1744787578693,14.75612902,125.67,125.66,0.05154436]
[1744787583698,7.9602,125.64,125.62,29.5]
[1744787583895,14.75842902,125.64,125.62,29.5]
[1744787584097,7.9602,125.64,125.62,29.5]
[1744787584798,8.01640272,125.64,125.62,29.56060841]
[1744787585502,0.05620272,125.64,125.62,37.52170841]
[1744787587402,8.01610272,125.64,125.62,37.52170841]
[1744787588403,8.01610272,125.64,125.62,29.56060841]
[1744787588803,0.05620272,125.64,125.62,29.56060841]
[1744787589099,0.05620272,125.64,125.62,37.52150841]
[1744787589901,8.01610272,125.64,125.62,37.52150841]
[1744787590700,8.01610272,125.64,125.62,29.56060841]
[1744787592100,7.9605,125.63,125.62,29.56060841]
[1744787592301,14.75872902,125.63,125.62,0.06060841]
[1744787600905,6.79822902,125.63,125.59,29.48]
[1744787601415,7.9612,125.62,125.59,37.443]
[1744787601610,6.79822902,125.63,125.59,29.48]
[1744787601905,6.79822902,125.61,125.59,29.48]
[1744787602311,7.9624,125.6,125.59,29.48]
[1744787606210,7.9633,125.59,125.56,29.48]
[1744787606716,7.9633,125.59,125.56,37.4448]
[1744787607012,7.964,125.58,125.56,29.48]
[1744787607213,6.79822902,125.6,125.56,37.4446]
[1744787607416,0.06096792,125.58,125.56,44.24282902]
[1744787607615,7.9628,125.6,125.56,44.24282902]
[1744787607914,8.02339927,125.6,125.56,44.24282902]
[1744787609616,8.02339927,125.6,125.57,7.9641]
[1744787615017,0.06059927,125.6,125.59,6.79822902]
[1744787615227,0.06059927,125.6,125.59,36.27822902]
[1744787616233,0.06059927,125.6,125.59,44.24122902]
[1744787620826,0.06059927,125.6,125.59,29.48]
[1744787621128,6.85882829,125.6,125.59,29.48]
[1744787623731,14.82122829,125.6,125.59,29.48]
[1744787624530,7.963,125.59,125.56,7.9646]
[1744787624732,14.76122902,125.59,125.56,7.9646]
[1744787626938,6.79822902,125.58,125.55,29.46]
[1744787627123,6.79822902,125.57,125.55,29.46]
[1744787627639,14.82233311,125.57,125.55,29.46]
[1744787628336,0.05940409,125.57,125.55,29.46]
[1744787629736,8.02370409,125.57,125.55,29.46]
[1744787630534,0.05940409,125.57,125.55,37.4255]
[1744787631237,0.05940409,125.57,125.55,29.46]
[1744787632238,8.02390409,125.57,125.55,29.46]
[1744787634245,7.9649,125.56,125.55,29.46]
[1744787634943,8.02390409,125.57,125.55,29.46]
[1744787640746,7.9649,125.56,125.55,29.46]
[1744787640938,0.05940409,125.57,125.55,29.46]
[1744787641544,7.9649,125.56,125.55,29.46]
[1744787642049,7.9658,125.55,125.52,44.22532902]
[1744787642347,6.79822902,125.56,125.52,29.46]
[1744787642945,7.9658,125.55,125.52,37.4271]
[1744787643443,8.02390409,125.57,125.54,7.966]
[1744787645046,0.05940409,125.57,125.55,7.9651]
[1744787645644,0.05940409,125.57,125.54,6.79822902]
[1744787646143,0.05940409,125.57,125.55,7.9653]
[1744787650350,8.02370409,125.57,125.55,7.9653]
[1744787651352,14.76332902,125.56,125.52,29.46]
[1744787651650,6.79822902,125.56,125.52,29.46]
[1744787651851,7.9657,125.55,125.52,37.427]
[1744787655155,7.9657,125.55,125.53,7.9667]
[1744787657655,0.05940409,125.57,125.53,6.79822902]
[1744787657861,0.05940409,125.57,125.54,6.79822902]
[1744787658657,0.05940409,125.57,125.55,37.425]
[1744787659158,0.05940409,125.57,125.56,7.9649]
[1744787660253,0.05940409,125.57,125.56,14.76312902]
[1744787660455,7.9615,125.62,125.56,6.79822902]
[1744787660655,7.9615,125.62,125.58,6.79822902]
[1744787660855,7.9615,125.62,125.59,7.9627]
[1744787661554,8.01435102,125.62,125.59,8.02032907]
[1744787666161,7.9618,125.61,125.59,0.05762907]
[1744787666862,14.75992902,125.61,125.59,0.05762907]
[1744787669766,7.9617,125.61,125.59,0.05762907]
[1744787670165,6.85108004,125.62,125.59,0.05762907]
[1744787670769,6.79822902,125.61,125.59,0.05762907]
[1744787670969,6.79822902,125.6,125.59,0.05762907]
[1744787671771,14.76062902,125.6,125.59,0.05762907]
[1744787671969,7.9624,125.6,125.59,0.05762907]
[1744787672173,6.85108004,125.62,125.59,0.05762907]
[1744787672471,8.01415102,125.62,125.59,0.05762907]
[1744787672972,8.01415102,125.62,125.59,8.02032907]
[1744787673172,0.05285102,125.62,125.59,0.05762907]
[1744787673571,0.05285102,125.62,125.6,7.9621]
[1744787674878,8.01395102,125.62,125.59,8.02032907]
[1744787676777,7.9618,125.61,125.59,8.02032907]
[1744787678175,8.01425102,125.62,125.59,8.02032907]
[1744787678374,0.05285102,125.62,125.59,8.02032907]
[1744787678676,8.01415102,125.62,125.59,8.02032907]
[1744787679076,14.81238004,125.62,125.59,8.02032907]
[1744787680277,14.76032902,125.61,125.59,0.05762907]
[1744787680472,6.79822902,125.61,125.59,0.05762907]
[1744787682081,7.9624,125.6,125.59,0.05762907]
[1744787690682,0.05285102,125.62,125.59,14.81825809]
[1744787690877,0.05285102,125.62,125.59,6.85585809]
[1744787691385,0.05285102,125.62,125.6,7.9623]
[1744787692783,8.01395102,125.62,125.59,14.81855809]
[1744787692986,8.01395102,125.62,125.59,8.02032907]
[1744787695185,14.76002902,125.61,125.59,0.05762907]
[1744787696586,6.79822902,125.61,125.59,8.02062907]
[1744787696780,8.01425102,125.62,125.59,0.05762907]
[1744787696987,0.05285102,125.62,125.59,0.05762907]
[1744787698188,7.9618,125.61,125.59,0.05762907]
[1744787700685,7.9623,125.61,125.59,0.05762907]
[1744787700885,14.76052902,125.61,125.59,0.05762907]
[1744787701588,7.9624,125.6,125.59,0.05762907]
[1744787702587,6.79822902,125.61,125.55,29.44]
[1744787702790,14.76222902,125.58,125.55,29.44]
[1744787703786,6.85426623,125.58,125.55,29.44]
[1744787703992,6.79822902,125.56,125.52,602.72]
[1744787704485,0.0527473,125.55,125.52,610.687]
[1744787706893,6.85097632,125.55,125.52,29.42]
[1744787707591,0.0527473,125.55,125.52,29.42]
[1744787707889,0.0527473,125.55,125.53,6.79822902]
[1744787708086,0.0527473,125.55,125.54,14.76442902]
[1744787712294,0.0527473,125.55,125.54,7.9662]
[1744787712495,0.0527473,125.55,125.53,7.9665]
[1744787713195,0.0527473,125.55,125.52,36.21822902]
[1744787713595,0.0527473,125.55,125.53,6.79822902]
[1744787713795,0.0527473,125.55,125.54,7.9662]
[1744787718402,0.0527473,125.55,125.53,6.79822902]
[1744787718601,0.0527473,125.55,125.52,29.42]
[1744787719104,8.0186473,125.55,125.52,37.3874]
[1744787721410,6.79822902,125.53,125.49,29.42]
[1744787721805,8.02745362,125.52,125.49,37.389]
[1744787723207,8.02745362,125.52,125.49,29.42]
[1744787725210,8.02745362,125.52,125.49,37.3893]
[1744787726111,7.9681,125.51,125.49,37.3893]
[1744787730420,6.79822902,125.5,125.47,7.9702]
[1744787730917,14.76722902,125.5,125.47,7.9702]
[1744787731216,7.969,125.5,125.48,7.9699]
[1744787731716,8.02340455,125.5,125.48,7.9699]
[1744787732119,8.02340455,125.5,125.47,7.9703]
[1744787743225,7.9694,125.49,125.47,7.9703]
[1744787744825,6.79822902,125.49,125.46,29.44]
[1744787745727,7.9695,125.49,125.46,37.4108]
[1744787746028,6.85263357,125.5,125.46,37.4108]
[1744787746222,7.9698,125.49,125.46,37.4108]
[1744787749533,7.9695,125.49,125.46,37.4108]
[1744787751728,7.9701,125.48,125.46,37.4108]